{"text_format":"3","workbook":"xlsx","n_sheets":13,"sheets":["มกราคม","กุมภาพันธ์","มีนาคม","เมษายน","พฤษภาคม","มิถุนายน","กรกฎาคม","สิงหาคม","กันยายน","ตุลาคม","พฤศจิกายน","ธันวาคม","สรุปจนถึงปัจจุบัน"],"not_rendered":{"charts":1,"defined_names":13},"read":"whole","date_system":"1900"}

{"sheet":"มกราคม","index":0,"n_rows":9,"n_cols":14,"rows_kept":9,"merged":[[3,0,4,0],[6,0,7,0]]}
["มกราคม"]
["การขายแบบออนไลน์",null,"รหัส\nการประมูล","คำอธิบาย\nรายการ","ราคา\nซื้อ","ราคาขาย","ค่าธรรมเนียมออนไลน์","ค่าธรรมเนียม\nPayPal","ค่าธรรมเนียม\nบัตรเครดิต","ค่า\nจัดส่ง","ค่าธรรมเนียม\nการจัดส่ง","กำไร/ขาดทุน\nยอดขาย","กำไร/ขาดทุน\nการจัดส่ง","กำไร/ขาดทุน ผลรวม"]
["ปี",null,"TS001"," รายการ 1",{"v":5,"d":"฿ 5.00"},{"v":4,"d":"฿ 4.00"},{"v":2,"d":"฿ 2.00"},{"v":1.5,"d":"฿ 1.50"},{"v":0,"d":"฿ 0.00"},{"v":4,"d":"฿ 4.00"},{"v":2,"d":"฿ 2.00"},{"$f":"IFERROR(ยอดขายเดือนมกราคม[ราคาขาย]-(ยอดขายเดือนมกราคม[ราคา\nซื้อ]+ยอดขายเดือนมกราคม[ค่าธรรมเนียมออนไลน์]+ยอดขายเดือนมกราคม[ค่าธรรมเนียม\nPayPal]+ยอดขายเดือนมกราคม[ค่าธรรมเนียม\nบัตรเครดิต]),\"\")","v":{"v":-4.5,"d":"(฿ 4.50)"}},{"$f":"ยอดขายเดือนมกราคม[ค่า\nจัดส่ง]-ยอดขายเดือนมกราคม[ค่าธรรมเนียม\nการจัดส่ง]","v":{"v":2,"d":"฿ 2.00"}},{"$f":"ยอดขายเดือนมกราคม[กำไร/ขาดทุน\nยอดขาย]+ยอดขายเดือนมกราคม[กำไร/ขาดทุน\nการจัดส่ง]","v":{"v":-2.5,"d":"(฿ 2.50)"}}]
[2555,null,"TP004"," รายการ 2",{"v":2,"d":"฿ 2.00"},{"v":30,"d":"฿ 30.00"},{"v":0.5,"d":"฿ 0.50"},{"v":0.5,"d":"฿ 0.50"},null,{"v":4,"d":"฿ 4.00"},{"v":5.5,"d":"฿ 5.50"},{"$f":"IFERROR(ยอดขายเดือนมกราคม[ราคาขาย]-(ยอดขายเดือนมกราคม[ราคา\nซื้อ]+ยอดขายเดือนมกราคม[ค่าธรรมเนียมออนไลน์]+ยอดขายเดือนมกราคม[ค่าธรรมเนียม\nPayPal]+ยอดขายเดือนมกราคม[ค่าธรรมเนียม\nบัตรเครดิต]),\"\")","v":{"v":27,"d":"฿ 27.00"}},{"$f":"ยอดขายเดือนมกราคม[ค่า\nจัดส่ง]-ยอดขายเดือนมกราคม[ค่าธรรมเนียม\nการจัดส่ง]","v":{"v":-1.5,"d":"(฿ 1.50)"}},{"$f":"ยอดขายเดือนมกราคม[กำไร/ขาดทุน\nยอดขาย]+ยอดขายเดือนมกราคม[กำไร/ขาดทุน\nการจัดส่ง]","v":{"v":25.5,"d":"฿ 25.50"}}]
[null,null,"RS99"," รายการ 3",{"v":17,"d":"฿ 17.00"},{"v":23,"d":"฿ 23.00"},{"v":2,"d":"฿ 2.00"},null,{"v":2,"d":"฿ 2.00"},{"v":3,"d":"฿ 3.00"},{"v":2,"d":"฿ 2.00"},{"$f":"IFERROR(ยอดขายเดือนมกราคม[ราคาขาย]-(ยอดขายเดือนมกราคม[ราคา\nซื้อ]+ยอดขายเดือนมกราคม[ค่าธรรมเนียมออนไลน์]+ยอดขายเดือนมกราคม[ค่าธรรมเนียม\nPayPal]+ยอดขายเดือนมกราคม[ค่าธรรมเนียม\nบัตรเครดิต]),\"\")","v":{"v":2,"d":"฿ 2.00"}},{"$f":"ยอดขายเดือนมกราคม[ค่า\nจัดส่ง]-ยอดขายเดือนมกราคม[ค่าธรรมเนียม\nการจัดส่ง]","v":{"v":1,"d":"฿ 1.00"}},{"$f":"ยอดขายเดือนมกราคม[กำไร/ขาดทุน\nยอดขาย]+ยอดขายเดือนมกราคม[กำไร/ขาดทุน\nการจัดส่ง]","v":{"v":3,"d":"฿ 3.00"}}]
["กำไร/ขาดทุน ผลรวม",null,"ST001"," รายการ 4",{"v":120,"d":"฿ 120.00"},{"v":180,"d":"฿ 180.00"},{"v":2,"d":"฿ 2.00"},{"v":1.5,"d":"฿ 1.50"},null,{"v":3,"d":"฿ 3.00"},{"v":2,"d":"฿ 2.00"},{"$f":"IFERROR(ยอดขายเดือนมกราคม[ราคาขาย]-(ยอดขายเดือนมกราคม[ราคา\nซื้อ]+ยอดขายเดือนมกราคม[ค่าธรรมเนียมออนไลน์]+ยอดขายเดือนมกราคม[ค่าธรรมเนียม\nPayPal]+ยอดขายเดือนมกราคม[ค่าธรรมเนียม\nบัตรเครดิต]),\"\")","v":{"v":56.5,"d":"฿ 56.50"}},{"$f":"ยอดขายเดือนมกราคม[ค่า\nจัดส่ง]-ยอดขายเดือนมกราคม[ค่าธรรมเนียม\nการจัดส่ง]","v":{"v":1,"d":"฿ 1.00"}},{"$f":"ยอดขายเดือนมกราคม[กำไร/ขาดทุน\nยอดขาย]+ยอดขายเดือนมกราคม[กำไร/ขาดทุน\nการจัดส่ง]","v":{"v":57.5,"d":"฿ 57.50"}}]
[{"$f":"ยอดขายเดือนมกราคม[[#Totals],[กำไร/ขาดทุน ผลรวม]]","v":{"v":89,"d":"฿89.00"}},null,"ST001"," รายการ 5",{"v":10,"d":"฿ 10.00"},{"v":12,"d":"฿ 12.00"},{"v":2,"d":"฿ 2.00"},{"v":1.5,"d":"฿ 1.50"},null,{"v":14,"d":"฿ 14.00"},{"v":7,"d":"฿ 7.00"},{"$f":"IFERROR(ยอดขายเดือนมกราคม[ราคาขาย]-(ยอดขายเดือนมกราคม[ราคา\nซื้อ]+ยอดขายเดือนมกราคม[ค่าธรรมเนียมออนไลน์]+ยอดขายเดือนมกราคม[ค่าธรรมเนียม\nPayPal]+ยอดขายเดือนมกราคม[ค่าธรรมเนียม\nบัตรเครดิต]),\"\")","v":{"v":-1.5,"d":"(฿ 1.50)"}},{"$f":"ยอดขายเดือนมกราคม[ค่า\nจัดส่ง]-ยอดขายเดือนมกราคม[ค่าธรรมเนียม\nการจัดส่ง]","v":{"v":7,"d":"฿ 7.00"}},{"$f":"ยอดขายเดือนมกราคม[กำไร/ขาดทุน\nยอดขาย]+ยอดขายเดือนมกราคม[กำไร/ขาดทุน\nการจัดส่ง]","v":{"v":5.5,"d":"฿ 5.50"}}]
[null,null,"Total",{"$f":"\"รายการที่ขายได้: \"&SUBTOTAL(103,ยอดขายเดือนมกราคม[คำอธิบาย\nรายการ])","v":"รายการที่ขายได้: 5"},{"$f":"SUBTOTAL(109,ยอดขายเดือนมกราคม[ราคา\nซื้อ])","v":{"v":154,"d":"฿ 154.00"}},{"$f":"SUBTOTAL(109,ยอดขายเดือนมกราคม[ราคาขาย])","v":{"v":249,"d":"฿ 249.00"}},{"$f":"SUBTOTAL(109,ยอดขายเดือนมกราคม[ค่าธรรมเนียมออนไลน์])","v":{"v":8.5,"d":"฿ 8.50"}},{"$f":"SUBTOTAL(109,ยอดขายเดือนมกราคม[ค่าธรรมเนียม\nPayPal])","v":{"v":5,"d":"฿ 5.00"}},{"$f":"SUBTOTAL(109,ยอดขายเดือนมกราคม[ค่าธรรมเนียม\nบัตรเครดิต])","v":{"v":2,"d":"฿ 2.00"}},{"$f":"SUBTOTAL(109,ยอดขายเดือนมกราคม[ค่า\nจัดส่ง])","v":{"v":28,"d":"฿ 28.00"}},{"$f":"SUBTOTAL(109,ยอดขายเดือนมกราคม[ค่าธรรมเนียม\nการจัดส่ง])","v":{"v":18.5,"d":"฿ 18.50"}},{"$f":"SUBTOTAL(109,ยอดขายเดือนมกราคม[กำไร/ขาดทุน\nยอดขาย])","v":{"v":79.5,"d":"฿ 79.50"}},{"$f":"SUBTOTAL(109,ยอดขายเดือนมกราคม[กำไร/ขาดทุน\nการจัดส่ง])","v":{"v":9.5,"d":"฿ 9.50"}},{"$f":"SUBTOTAL(109,ยอดขายเดือนมกราคม[กำไร/ขาดทุน ผลรวม])","v":{"v":89,"d":"฿ 89.00"}}]
["กำไร/ขาดทุน แนวโน้ม"]

{"sheet":"กุมภาพันธ์","index":1,"n_rows":9,"n_cols":14,"rows_kept":9,"merged":[[3,0,4,0],[6,0,7,0]]}
["กุมภาพันธ์"]
["การขายแบบออนไลน์",null,"รหัส\nการประมูล","คำอธิบาย\nรายการ","ราคา\nซื้อ","ราคาขาย","ค่าธรรมเนียมออนไลน์","ค่าธรรมเนียม\nPayPal","ค่าธรรมเนียม\nบัตรเครดิต","ค่า\nจัดส่ง","ค่าธรรมเนียม\nการจัดส่ง","กำไร/ขาดทุน\nยอดขาย","กำไร/ขาดทุน\nการจัดส่ง","กำไร/ขาดทุน ผลรวม"]
["ปี",null,"TS020"," รายการ 1",{"v":10,"d":"฿ 10.00"},{"v":175,"d":"฿ 175.00"},{"v":3,"d":"฿ 3.00"},{"v":1.5,"d":"฿ 1.50"},{"v":0,"d":"฿ 0.00"},{"v":7,"d":"฿ 7.00"},{"v":5,"d":"฿ 5.00"},{"$f":"IFERROR(ยอดขายเดือนกุมภาพันธ์[ราคาขาย]-(ยอดขายเดือนกุมภาพันธ์[ราคา\nซื้อ]+ยอดขายเดือนกุมภาพันธ์[ค่าธรรมเนียมออนไลน์]+ยอดขายเดือนกุมภาพันธ์[ค่าธรรมเนียม\nPayPal]+ยอดขายเดือนกุมภาพันธ์[ค่าธรรมเนียม\nบัตรเครดิต]),\"\")","v":{"v":160.5,"d":"฿ 160.50"}},{"$f":"ยอดขายเดือนกุมภาพันธ์[ค่า\nจัดส่ง]-ยอดขายเดือนกุมภาพันธ์[ค่าธรรมเนียม\nการจัดส่ง]","v":{"v":2,"d":"฿ 2.00"}},{"$f":"ยอดขายเดือนกุมภาพันธ์[กำไร/ขาดทุน\nยอดขาย]+ยอดขายเดือนกุมภาพันธ์[กำไร/ขาดทุน\nการจัดส่ง]","v":{"v":162.5,"d":"฿ 162.50"}}]
[{"$f":"SalesYear","v":2555},null,"TS021"," รายการ 2",{"v":32,"d":"฿ 32.00"},{"v":100,"d":"฿ 100.00"},{"v":3,"d":"฿ 3.00"},null,{"v":3.2,"d":"฿ 3.20"},{"v":20,"d":"฿ 20.00"},{"v":13,"d":"฿ 13.00"},{"$f":"IFERROR(ยอดขายเดือนกุมภาพันธ์[ราคาขาย]-(ยอดขายเดือนกุมภาพันธ์[ราคา\nซื้อ]+ยอดขายเดือนกุมภาพันธ์[ค่าธรรมเนียมออนไลน์]+ยอดขายเดือนกุมภาพันธ์[ค่าธรรมเนียม\nPayPal]+ยอดขายเดือนกุมภาพันธ์[ค่าธรรมเนียม\nบัตรเครดิต]),\"\")","v":{"v":61.8,"d":"฿ 61.80"}},{"$f":"ยอดขายเดือนกุมภาพันธ์[ค่า\nจัดส่ง]-ยอดขายเดือนกุมภาพันธ์[ค่าธรรมเนียม\nการจัดส่ง]","v":{"v":7,"d":"฿ 7.00"}},{"$f":"ยอดขายเดือนกุมภาพันธ์[กำไร/ขาดทุน\nยอดขาย]+ยอดขายเดือนกุมภาพันธ์[กำไร/ขาดทุน\nการจัดส่ง]","v":{"v":68.8,"d":"฿ 68.80"}}]
[null,null,"TS022"," รายการ 3",{"v":3,"d":"฿ 3.00"},{"v":7,"d":"฿ 7.00"},{"v":2,"d":"฿ 2.00"},null,{"v":2,"d":"฿ 2.00"},{"v":0.5,"d":"฿ 0.50"},{"v":1.2,"d":"฿ 1.20"},{"$f":"IFERROR(ยอดขายเดือนกุมภาพันธ์[ราคาขาย]-(ยอดขายเดือนกุมภาพันธ์[ราคา\nซื้อ]+ยอดขายเดือนกุมภาพันธ์[ค่าธรรมเนียมออนไลน์]+ยอดขายเดือนกุมภาพันธ์[ค่าธรรมเนียม\nPayPal]+ยอดขายเดือนกุมภาพันธ์[ค่าธรรมเนียม\nบัตรเครดิต]),\"\")","v":{"v":0,"d":"฿ 0.00"}},{"$f":"ยอดขายเดือนกุมภาพันธ์[ค่า\nจัดส่ง]-ยอดขายเดือนกุมภาพันธ์[ค่าธรรมเนียม\nการจัดส่ง]","v":{"v":-0.7,"d":"(฿ 0.70)"}},{"$f":"ยอดขายเดือนกุมภาพันธ์[กำไร/ขาดทุน\nยอดขาย]+ยอดขายเดือนกุมภาพันธ์[กำไร/ขาดทุน\nการจัดส่ง]","v":{"v":-0.7,"d":"(฿ 0.70)"}}]
["กำไร/ขาดทุน ผลรวม",null,"TS023"," รายการ 4",{"v":22,"d":"฿ 22.00"},{"v":18,"d":"฿ 18.00"},{"v":3,"d":"฿ 3.00"},{"v":1.5,"d":"฿ 1.50"},null,{"v":7,"d":"฿ 7.00"},{"v":10,"d":"฿ 10.00"},{"$f":"IFERROR(ยอดขายเดือนกุมภาพันธ์[ราคาขาย]-(ยอดขายเดือนกุมภาพันธ์[ราคา\nซื้อ]+ยอดขายเดือนกุมภาพันธ์[ค่าธรรมเนียมออนไลน์]+ยอดขายเดือนกุมภาพันธ์[ค่าธรรมเนียม\nPayPal]+ยอดขายเดือนกุมภาพันธ์[ค่าธรรมเนียม\nบัตรเครดิต]),\"\")","v":{"v":-8.5,"d":"(฿ 8.50)"}},{"$f":"ยอดขายเดือนกุมภาพันธ์[ค่า\nจัดส่ง]-ยอดขายเดือนกุมภาพันธ์[ค่าธรรมเนียม\nการจัดส่ง]","v":{"v":-3,"d":"(฿ 3.00)"}},{"$f":"ยอดขายเดือนกุมภาพันธ์[กำไร/ขาดทุน\nยอดขาย]+ยอดขายเดือนกุมภาพันธ์[กำไร/ขาดทุน\nการจัดส่ง]","v":{"v":-11.5,"d":"(฿ 11.50)"}}]
[{"$f":"ยอดขายเดือนกุมภาพันธ์[[#Totals],[กำไร/ขาดทุน ผลรวม]]","v":{"v":224.60000000000002,"d":"฿224.60"}},null,"TS024"," รายการ 5",{"v":10,"d":"฿ 10.00"},{"v":12,"d":"฿ 12.00"},{"v":2,"d":"฿ 2.00"},{"v":1.5,"d":"฿ 1.50"},null,{"v":14,"d":"฿ 14.00"},{"v":7,"d":"฿ 7.00"},{"$f":"IFERROR(ยอดขายเดือนกุมภาพันธ์[ราคาขาย]-(ยอดขายเดือนกุมภาพันธ์[ราคา\nซื้อ]+ยอดขายเดือนกุมภาพันธ์[ค่าธรรมเนียมออนไลน์]+ยอดขายเดือนกุมภาพันธ์[ค่าธรรมเนียม\nPayPal]+ยอดขายเดือนกุมภาพันธ์[ค่าธรรมเนียม\nบัตรเครดิต]),\"\")","v":{"v":-1.5,"d":"(฿ 1.50)"}},{"$f":"ยอดขายเดือนกุมภาพันธ์[ค่า\nจัดส่ง]-ยอดขายเดือนกุมภาพันธ์[ค่าธรรมเนียม\nการจัดส่ง]","v":{"v":7,"d":"฿ 7.00"}},{"$f":"ยอดขายเดือนกุมภาพันธ์[กำไร/ขาดทุน\nยอดขาย]+ยอดขายเดือนกุมภาพันธ์[กำไร/ขาดทุน\nการจัดส่ง]","v":{"v":5.5,"d":"฿ 5.50"}}]
[null,null," ผลรวม",{"$f":"\"รายการที่ขายได้: \"&SUBTOTAL(103,ยอดขายเดือนกุมภาพันธ์[คำอธิบาย\nรายการ])","v":"รายการที่ขายได้: 5"},{"$f":"SUBTOTAL(109,ยอดขายเดือนกุมภาพันธ์[ราคา\nซื้อ])","v":{"v":77,"d":"฿ 77.00"}},{"$f":"SUBTOTAL(109,ยอดขายเดือนกุมภาพันธ์[ราคาขาย])","v":{"v":312,"d":"฿ 312.00"}},{"$f":"SUBTOTAL(109,ยอดขายเดือนกุมภาพันธ์[ค่าธรรมเนียมออนไลน์])","v":{"v":13,"d":"฿ 13.00"}},{"$f":"SUBTOTAL(109,ยอดขายเดือนกุมภาพันธ์[ค่าธรรมเนียม\nPayPal])","v":{"v":4.5,"d":"฿ 4.50"}},{"$f":"SUBTOTAL(109,ยอดขายเดือนกุมภาพันธ์[ค่าธรรมเนียม\nบัตรเครดิต])","v":{"v":5.2,"d":"฿ 5.20"}},{"$f":"SUBTOTAL(109,ยอดขายเดือนกุมภาพันธ์[ค่า\nจัดส่ง])","v":{"v":48.5,"d":"฿ 48.50"}},{"$f":"SUBTOTAL(109,ยอดขายเดือนกุมภาพันธ์[ค่าธรรมเนียม\nการจัดส่ง])","v":{"v":36.2,"d":"฿ 36.20"}},{"$f":"SUBTOTAL(109,ยอดขายเดือนกุมภาพันธ์[กำไร/ขาดทุน\nยอดขาย])","v":{"v":212.3,"d":"฿ 212.30"}},{"$f":"SUBTOTAL(109,ยอดขายเดือนกุมภาพันธ์[กำไร/ขาดทุน\nการจัดส่ง])","v":{"v":12.3,"d":"฿ 12.30"}},{"$f":"SUBTOTAL(109,ยอดขายเดือนกุมภาพันธ์[กำไร/ขาดทุน ผลรวม])","v":{"v":224.60000000000002,"d":"฿ 224.60"}}]
["กำไร/ขาดทุน แนวโน้ม"]

{"sheet":"มีนาคม","index":2,"n_rows":9,"n_cols":14,"rows_kept":9,"merged":[[3,0,4,0],[6,0,7,0]]}
["มีนาคม"]
["การขายแบบออนไลน์",null,"รหัส\nการประมูล","คำอธิบาย\nรายการ","ราคา\nซื้อ","ราคาขาย","ค่าธรรมเนียมออนไลน์","ค่าธรรมเนียม\nPayPal","ค่าธรรมเนียม\nบัตรเครดิต","ค่า\nจัดส่ง","ค่าธรรมเนียม\nการจัดส่ง","กำไร/ขาดทุน\nยอดขาย","กำไร/ขาดทุน\nการจัดส่ง","กำไร/ขาดทุน ผลรวม"]
["ปี",{"$nulls":10},{"$f":"IFERROR(ยอดขายเดือนมีนาคม[ราคาขาย]-(ยอดขายเดือนมีนาคม[ราคา\nซื้อ]+ยอดขายเดือนมีนาคม[ค่าธรรมเนียมออนไลน์]+ยอดขายเดือนมีนาคม[ค่าธรรมเนียม\nPayPal]+ยอดขายเดือนมีนาคม[ค่าธรรมเนียม\nบัตรเครดิต]),\"\")","v":{"v":0,"d":"฿ 0.00"}},{"$f":"ยอดขายเดือนมีนาคม[ค่า\nจัดส่ง]-ยอดขายเดือนมีนาคม[ค่าธรรมเนียม\nการจัดส่ง]","v":{"v":0,"d":"฿ 0.00"}},{"$f":"ยอดขายเดือนมีนาคม[กำไร/ขาดทุน\nยอดขาย]+ยอดขายเดือนมีนาคม[กำไร/ขาดทุน\nการจัดส่ง]","v":{"v":0,"d":"฿ 0.00"}}]
[{"$f":"SalesYear","v":2555},{"$nulls":10},{"$f":"IFERROR(ยอดขายเดือนมีนาคม[ราคาขาย]-(ยอดขายเดือนมีนาคม[ราคา\nซื้อ]+ยอดขายเดือนมีนาคม[ค่าธรรมเนียมออนไลน์]+ยอดขายเดือนมีนาคม[ค่าธรรมเนียม\nPayPal]+ยอดขายเดือนมีนาคม[ค่าธรรมเนียม\nบัตรเครดิต]),\"\")","v":{"v":0,"d":"฿ 0.00"}},{"$f":"ยอดขายเดือนมีนาคม[ค่า\nจัดส่ง]-ยอดขายเดือนมีนาคม[ค่าธรรมเนียม\nการจัดส่ง]","v":{"v":0,"d":"฿ 0.00"}},{"$f":"ยอดขายเดือนมีนาคม[กำไร/ขาดทุน\nยอดขาย]+ยอดขายเดือนมีนาคม[กำไร/ขาดทุน\nการจัดส่ง]","v":{"v":0,"d":"฿ 0.00"}}]
[{"$nulls":11},{"$f":"IFERROR(ยอดขายเดือนมีนาคม[ราคาขาย]-(ยอดขายเดือนมีนาคม[ราคา\nซื้อ]+ยอดขายเดือนมีนาคม[ค่าธรรมเนียมออนไลน์]+ยอดขายเดือนมีนาคม[ค่าธรรมเนียม\nPayPal]+ยอดขายเดือนมีนาคม[ค่าธรรมเนียม\nบัตรเครดิต]),\"\")","v":{"v":0,"d":"฿ 0.00"}},{"$f":"ยอดขายเดือนมีนาคม[ค่า\nจัดส่ง]-ยอดขายเดือนมีนาคม[ค่าธรรมเนียม\nการจัดส่ง]","v":{"v":0,"d":"฿ 0.00"}},{"$f":"ยอดขายเดือนมีนาคม[กำไร/ขาดทุน\nยอดขาย]+ยอดขายเดือนมีนาคม[กำไร/ขาดทุน\nการจัดส่ง]","v":{"v":0,"d":"฿ 0.00"}}]
["กำไร/ขาดทุน ผลรวม",{"$nulls":10},{"$f":"IFERROR(ยอดขายเดือนมีนาคม[ราคาขาย]-(ยอดขายเดือนมีนาคม[ราคา\nซื้อ]+ยอดขายเดือนมีนาคม[ค่าธรรมเนียมออนไลน์]+ยอดขายเดือนมีนาคม[ค่าธรรมเนียม\nPayPal]+ยอดขายเดือนมีนาคม[ค่าธรรมเนียม\nบัตรเครดิต]),\"\")","v":{"v":0,"d":"฿ 0.00"}},{"$f":"ยอดขายเดือนมีนาคม[ค่า\nจัดส่ง]-ยอดขายเดือนมีนาคม[ค่าธรรมเนียม\nการจัดส่ง]","v":{"v":0,"d":"฿ 0.00"}},{"$f":"ยอดขายเดือนมีนาคม[กำไร/ขาดทุน\nยอดขาย]+ยอดขายเดือนมีนาคม[กำไร/ขาดทุน\nการจัดส่ง]","v":{"v":0,"d":"฿ 0.00"}}]
[{"$f":"ยอดขายเดือนมีนาคม[[#Totals],[กำไร/ขาดทุน ผลรวม]]","v":{"v":0,"d":"฿0.00"}},{"$nulls":10},{"$f":"IFERROR(ยอดขายเดือนมีนาคม[ราคาขาย]-(ยอดขายเดือนมีนาคม[ราคา\nซื้อ]+ยอดขายเดือนมีนาคม[ค่าธรรมเนียมออนไลน์]+ยอดขายเดือนมีนาคม[ค่าธรรมเนียม\nPayPal]+ยอดขายเดือนมีนาคม[ค่าธรรมเนียม\nบัตรเครดิต]),\"\")","v":{"v":0,"d":"฿ 0.00"}},{"$f":"ยอดขายเดือนมีนาคม[ค่า\nจัดส่ง]-ยอดขายเดือนมีนาคม[ค่าธรรมเนียม\nการจัดส่ง]","v":{"v":0,"d":"฿ 0.00"}},{"$f":"ยอดขายเดือนมีนาคม[กำไร/ขาดทุน\nยอดขาย]+ยอดขายเดือนมีนาคม[กำไร/ขาดทุน\nการจัดส่ง]","v":{"v":0,"d":"฿ 0.00"}}]
[null,null," ผลรวม",{"$f":"\"รายการที่ขายได้: \"&SUBTOTAL(103,ยอดขายเดือนมีนาคม[คำอธิบาย\nรายการ])","v":"รายการที่ขายได้: 0"},{"$f":"SUBTOTAL(109,ยอดขายเดือนมีนาคม[ราคา\nซื้อ])","v":{"v":0,"d":"฿ 0.00"}},{"$f":"SUBTOTAL(109,ยอดขายเดือนมีนาคม[ราคาขาย])","v":{"v":0,"d":"฿ 0.00"}},{"$f":"SUBTOTAL(109,ยอดขายเดือนมีนาคม[ค่าธรรมเนียมออนไลน์])","v":{"v":0,"d":"฿ 0.00"}},{"$f":"SUBTOTAL(109,ยอดขายเดือนมีนาคม[ค่าธรรมเนียม\nPayPal])","v":{"v":0,"d":"฿ 0.00"}},{"$f":"SUBTOTAL(109,ยอดขายเดือนมีนาคม[ค่าธรรมเนียม\nบัตรเครดิต])","v":{"v":0,"d":"฿ 0.00"}},{"$f":"SUBTOTAL(109,ยอดขายเดือนมีนาคม[ค่า\nจัดส่ง])","v":{"v":0,"d":"฿ 0.00"}},{"$f":"SUBTOTAL(109,ยอดขายเดือนมีนาคม[ค่าธรรมเนียม\nการจัดส่ง])","v":{"v":0,"d":"฿ 0.00"}},{"$f":"SUBTOTAL(109,ยอดขายเดือนมีนาคม[กำไร/ขาดทุน\nยอดขาย])","v":{"v":0,"d":"฿ 0.00"}},{"$f":"SUBTOTAL(109,ยอดขายเดือนมีนาคม[กำไร/ขาดทุน\nการจัดส่ง])","v":{"v":0,"d":"฿ 0.00"}},{"$f":"SUBTOTAL(109,ยอดขายเดือนมีนาคม[กำไร/ขาดทุน ผลรวม])","v":{"v":0,"d":"฿ 0.00"}}]
["กำไร/ขาดทุน แนวโน้ม"]

{"sheet":"เมษายน","index":3,"n_rows":9,"n_cols":14,"rows_kept":9,"merged":[[3,0,4,0],[6,0,7,0]]}
["เมษายน"]
["การขายแบบออนไลน์",null,"รหัส\nการประมูล","คำอธิบาย\nรายการ","ราคา\nซื้อ","ราคาขาย","ค่าธรรมเนียมออนไลน์","ค่าธรรมเนียม\nPayPal","ค่าธรรมเนียม\nบัตรเครดิต","ค่า\nจัดส่ง","ค่าธรรมเนียม\nการจัดส่ง","กำไร/ขาดทุน\nยอดขาย","กำไร/ขาดทุน\nการจัดส่ง","กำไร/ขาดทุน ผลรวม"]
["ปี",{"$nulls":11},{"$f":"ยอดขายเดือนเมษายน[ค่า\nจัดส่ง]-ยอดขายเดือนเมษายน[ค่าธรรมเนียม\nการจัดส่ง]","v":{"v":0,"d":"฿ 0.00"}},{"$f":"ยอดขายเดือนเมษายน[กำไร/ขาดทุน\nยอดขาย]+ยอดขายเดือนเมษายน[กำไร/ขาดทุน\nการจัดส่ง]","v":{"v":0,"d":"฿ 0.00"}}]
[{"$f":"SalesYear","v":2555},{"$nulls":11},{"$f":"ยอดขายเดือนเมษายน[ค่า\nจัดส่ง]-ยอดขายเดือนเมษายน[ค่าธรรมเนียม\nการจัดส่ง]","v":{"v":0,"d":"฿ 0.00"}},{"$f":"ยอดขายเดือนเมษายน[กำไร/ขาดทุน\nยอดขาย]+ยอดขายเดือนเมษายน[กำไร/ขาดทุน\nการจัดส่ง]","v":{"v":0,"d":"฿ 0.00"}}]
[{"$nulls":12},{"$f":"ยอดขายเดือนเมษายน[ค่า\nจัดส่ง]-ยอดขายเดือนเมษายน[ค่าธรรมเนียม\nการจัดส่ง]","v":{"v":0,"d":"฿ 0.00"}},{"$f":"ยอดขายเดือนเมษายน[กำไร/ขาดทุน\nยอดขาย]+ยอดขายเดือนเมษายน[กำไร/ขาดทุน\nการจัดส่ง]","v":{"v":0,"d":"฿ 0.00"}}]
["กำไร/ขาดทุน ผลรวม",{"$nulls":11},{"$f":"ยอดขายเดือนเมษายน[ค่า\nจัดส่ง]-ยอดขายเดือนเมษายน[ค่าธรรมเนียม\nการจัดส่ง]","v":{"v":0,"d":"฿ 0.00"}},{"$f":"ยอดขายเดือนเมษายน[กำไร/ขาดทุน\nยอดขาย]+ยอดขายเดือนเมษายน[กำไร/ขาดทุน\nการจัดส่ง]","v":{"v":0,"d":"฿ 0.00"}}]
[{"$f":"ยอดขายเดือนเมษายน[[#Totals],[กำไร/ขาดทุน ผลรวม]]","v":{"v":0,"d":"฿0.00"}},{"$nulls":11},{"$f":"ยอดขายเดือนเมษายน[ค่า\nจัดส่ง]-ยอดขายเดือนเมษายน[ค่าธรรมเนียม\nการจัดส่ง]","v":{"v":0,"d":"฿ 0.00"}},{"$f":"ยอดขายเดือนเมษายน[กำไร/ขาดทุน\nยอดขาย]+ยอดขายเดือนเมษายน[กำไร/ขาดทุน\nการจัดส่ง]","v":{"v":0,"d":"฿ 0.00"}}]
[null,null,"  ผลรวม",{"$f":"\"รายการที่ขายได้: \"&SUBTOTAL(103,ยอดขายเดือนเมษายน[คำอธิบาย\nรายการ])","v":"รายการที่ขายได้: 0"},{"$f":"SUBTOTAL(109,ยอดขายเดือนเมษายน[ราคา\nซื้อ])","v":{"v":0,"d":"฿ 0.00"}},{"$f":"SUBTOTAL(109,ยอดขายเดือนเมษายน[ราคาขาย])","v":{"v":0,"d":"฿ 0.00"}},{"$f":"SUBTOTAL(109,ยอดขายเดือนเมษายน[ค่าธรรมเนียมออนไลน์])","v":{"v":0,"d":"฿ 0.00"}},{"$f":"SUBTOTAL(109,ยอดขายเดือนเมษายน[ค่าธรรมเนียม\nPayPal])","v":{"v":0,"d":"฿ 0.00"}},{"$f":"SUBTOTAL(109,ยอดขายเดือนเมษายน[ค่าธรรมเนียม\nบัตรเครดิต])","v":{"v":0,"d":"฿ 0.00"}},{"$f":"SUBTOTAL(109,ยอดขายเดือนเมษายน[ค่า\nจัดส่ง])","v":{"v":0,"d":"฿ 0.00"}},{"$f":"SUBTOTAL(109,ยอดขายเดือนเมษายน[ค่าธรรมเนียม\nการจัดส่ง])","v":{"v":0,"d":"฿ 0.00"}},{"$f":"SUBTOTAL(109,ยอดขายเดือนเมษายน[กำไร/ขาดทุน\nยอดขาย])","v":{"v":0,"d":"฿ 0.00"}},{"$f":"SUBTOTAL(109,ยอดขายเดือนเมษายน[กำไร/ขาดทุน\nการจัดส่ง])","v":{"v":0,"d":"฿ 0.00"}},{"$f":"SUBTOTAL(109,ยอดขายเดือนเมษายน[กำไร/ขาดทุน ผลรวม])","v":{"v":0,"d":"฿ 0.00"}}]
["กำไร/ขาดทุน แนวโน้ม"]

{"sheet":"พฤษภาคม","index":4,"n_rows":9,"n_cols":14,"rows_kept":9,"merged":[[3,0,4,0],[6,0,7,0]]}
["พฤษภาคม"]
["การขายแบบออนไลน์",null,"รหัส\nการประมูล","คำอธิบาย\nรายการ","ราคา\nซื้อ","ราคาขาย","ค่าธรรมเนียมออนไลน์","ค่าธรรมเนียม\nPayPal","ค่าธรรมเนียม\nบัตรเครดิต","ค่า\nจัดส่ง","ค่าธรรมเนียม\nการจัดส่ง","กำไร/ขาดทุน\nยอดขาย","กำไร/ขาดทุน\nการจัดส่ง","กำไร/ขาดทุน ผลรวม"]
["ปี",{"$nulls":11},{"$f":"ยอดขายเดือนพฤษภาคม[ค่า\nจัดส่ง]-ยอดขายเดือนพฤษภาคม[ค่าธรรมเนียม\nการจัดส่ง]","v":{"v":0,"d":"฿ 0.00"}},{"$f":"ยอดขายเดือนพฤษภาคม[กำไร/ขาดทุน\nยอดขาย]+ยอดขายเดือนพฤษภาคม[กำไร/ขาดทุน\nการจัดส่ง]","v":{"v":0,"d":"฿ 0.00"}}]
[{"$f":"SalesYear","v":2555},{"$nulls":11},{"$f":"ยอดขายเดือนพฤษภาคม[ค่า\nจัดส่ง]-ยอดขายเดือนพฤษภาคม[ค่าธรรมเนียม\nการจัดส่ง]","v":{"v":0,"d":"฿ 0.00"}},{"$f":"ยอดขายเดือนพฤษภาคม[กำไร/ขาดทุน\nยอดขาย]+ยอดขายเดือนพฤษภาคม[กำไร/ขาดทุน\nการจัดส่ง]","v":{"v":0,"d":"฿ 0.00"}}]
[{"$nulls":12},{"$f":"ยอดขายเดือนพฤษภาคม[ค่า\nจัดส่ง]-ยอดขายเดือนพฤษภาคม[ค่าธรรมเนียม\nการจัดส่ง]","v":{"v":0,"d":"฿ 0.00"}},{"$f":"ยอดขายเดือนพฤษภาคม[กำไร/ขาดทุน\nยอดขาย]+ยอดขายเดือนพฤษภาคม[กำไร/ขาดทุน\nการจัดส่ง]","v":{"v":0,"d":"฿ 0.00"}}]
["กำไร/ขาดทุน ผลรวม",{"$nulls":11},{"$f":"ยอดขายเดือนพฤษภาคม[ค่า\nจัดส่ง]-ยอดขายเดือนพฤษภาคม[ค่าธรรมเนียม\nการจัดส่ง]","v":{"v":0,"d":"฿ 0.00"}},{"$f":"ยอดขายเดือนพฤษภาคม[กำไร/ขาดทุน\nยอดขาย]+ยอดขายเดือนพฤษภาคม[กำไร/ขาดทุน\nการจัดส่ง]","v":{"v":0,"d":"฿ 0.00"}}]
[{"$f":"ยอดขายเดือนพฤษภาคม[[#Totals],[กำไร/ขาดทุน ผลรวม]]","v":{"v":0,"d":"$0.00"}},{"$nulls":11},{"$f":"ยอดขายเดือนพฤษภาคม[ค่า\nจัดส่ง]-ยอดขายเดือนพฤษภาคม[ค่าธรรมเนียม\nการจัดส่ง]","v":{"v":0,"d":"฿ 0.00"}},{"$f":"ยอดขายเดือนพฤษภาคม[กำไร/ขาดทุน\nยอดขาย]+ยอดขายเดือนพฤษภาคม[กำไร/ขาดทุน\nการจัดส่ง]","v":{"v":0,"d":"฿ 0.00"}}]
[null,null," ผลรวม",{"$f":"\"รายการที่ขายได้: \"&SUBTOTAL(103,ยอดขายเดือนพฤษภาคม[คำอธิบาย\nรายการ])","v":"รายการที่ขายได้: 0"},{"$f":"SUBTOTAL(109,ยอดขายเดือนพฤษภาคม[ราคา\nซื้อ])","v":{"v":0,"d":"฿ 0.00"}},{"$f":"SUBTOTAL(109,ยอดขายเดือนพฤษภาคม[ราคาขาย])","v":{"v":0,"d":"฿ 0.00"}},{"$f":"SUBTOTAL(109,ยอดขายเดือนพฤษภาคม[ค่าธรรมเนียมออนไลน์])","v":{"v":0,"d":"฿ 0.00"}},{"$f":"SUBTOTAL(109,ยอดขายเดือนพฤษภาคม[ค่าธรรมเนียม\nPayPal])","v":{"v":0,"d":"฿ 0.00"}},{"$f":"SUBTOTAL(109,ยอดขายเดือนพฤษภาคม[ค่าธรรมเนียม\nบัตรเครดิต])","v":{"v":0,"d":"฿ 0.00"}},{"$f":"SUBTOTAL(109,ยอดขายเดือนพฤษภาคม[ค่า\nจัดส่ง])","v":{"v":0,"d":"฿ 0.00"}},{"$f":"SUBTOTAL(109,ยอดขายเดือนพฤษภาคม[ค่าธรรมเนียม\nการจัดส่ง])","v":{"v":0,"d":"฿ 0.00"}},{"$f":"SUBTOTAL(109,ยอดขายเดือนพฤษภาคม[กำไร/ขาดทุน\nยอดขาย])","v":{"v":0,"d":"฿ 0.00"}},{"$f":"SUBTOTAL(109,ยอดขายเดือนพฤษภาคม[กำไร/ขาดทุน\nการจัดส่ง])","v":{"v":0,"d":"฿ 0.00"}},{"$f":"SUBTOTAL(109,ยอดขายเดือนพฤษภาคม[กำไร/ขาดทุน ผลรวม])","v":{"v":0,"d":"฿ 0.00"}}]
["กำไร/ขาดทุน แนวโน้ม"]

{"sheet":"มิถุนายน","index":5,"n_rows":9,"n_cols":14,"rows_kept":9,"merged":[[3,0,4,0],[6,0,7,0]]}
["มิถุนายน"]
["การขายแบบออนไลน์",null,"รหัส\nการประมูล","คำอธิบาย\nรายการ","ราคา\nซื้อ","ราคาขาย","ค่าธรรมเนียมออนไลน์","ค่าธรรมเนียม\nPayPal","ค่าธรรมเนียม\nบัตรเครดิต","ค่า\nจัดส่ง","ค่าธรรมเนียม\nการจัดส่ง","กำไร/ขาดทุน\nยอดขาย","กำไร/ขาดทุน\nการจัดส่ง","กำไร/ขาดทุน ผลรวม"]
["ปี",{"$nulls":11},{"$f":"ยอดขายเดือนมิถุนายน[ค่า\nจัดส่ง]-ยอดขายเดือนมิถุนายน[ค่าธรรมเนียม\nการจัดส่ง]","v":{"v":0,"d":"฿ 0.00"}},{"$f":"ยอดขายเดือนมิถุนายน[กำไร/ขาดทุน\nยอดขาย]+ยอดขายเดือนมิถุนายน[กำไร/ขาดทุน\nการจัดส่ง]","v":{"v":0,"d":"฿ 0.00"}}]
[{"$f":"SalesYear","v":2555},{"$nulls":11},{"$f":"ยอดขายเดือนมิถุนายน[ค่า\nจัดส่ง]-ยอดขายเดือนมิถุนายน[ค่าธรรมเนียม\nการจัดส่ง]","v":{"v":0,"d":"฿ 0.00"}},{"$f":"ยอดขายเดือนมิถุนายน[กำไร/ขาดทุน\nยอดขาย]+ยอดขายเดือนมิถุนายน[กำไร/ขาดทุน\nการจัดส่ง]","v":{"v":0,"d":"฿ 0.00"}}]
[{"$nulls":12},{"$f":"ยอดขายเดือนมิถุนายน[ค่า\nจัดส่ง]-ยอดขายเดือนมิถุนายน[ค่าธรรมเนียม\nการจัดส่ง]","v":{"v":0,"d":"฿ 0.00"}},{"$f":"ยอดขายเดือนมิถุนายน[กำไร/ขาดทุน\nยอดขาย]+ยอดขายเดือนมิถุนายน[กำไร/ขาดทุน\nการจัดส่ง]","v":{"v":0,"d":"฿ 0.00"}}]
["กำไร/ขาดทุน ผลรวม",{"$nulls":11},{"$f":"ยอดขายเดือนมิถุนายน[ค่า\nจัดส่ง]-ยอดขายเดือนมิถุนายน[ค่าธรรมเนียม\nการจัดส่ง]","v":{"v":0,"d":"฿ 0.00"}},{"$f":"ยอดขายเดือนมิถุนายน[กำไร/ขาดทุน\nยอดขาย]+ยอดขายเดือนมิถุนายน[กำไร/ขาดทุน\nการจัดส่ง]","v":{"v":0,"d":"฿ 0.00"}}]
[{"$f":"ยอดขายเดือนมิถุนายน[[#Totals],[กำไร/ขาดทุน ผลรวม]]","v":{"v":0,"d":"฿0.00"}},{"$nulls":11},{"$f":"ยอดขายเดือนมิถุนายน[ค่า\nจัดส่ง]-ยอดขายเดือนมิถุนายน[ค่าธรรมเนียม\nการจัดส่ง]","v":{"v":0,"d":"฿ 0.00"}},{"$f":"ยอดขายเดือนมิถุนายน[กำไร/ขาดทุน\nยอดขาย]+ยอดขายเดือนมิถุนายน[กำไร/ขาดทุน\nการจัดส่ง]","v":{"v":0,"d":"฿ 0.00"}}]
[null,null," ผลรวม",{"$f":"\"รายการที่ขายได้: \"&SUBTOTAL(103,ยอดขายเดือนมิถุนายน[คำอธิบาย\nรายการ])","v":"รายการที่ขายได้: 0"},{"$f":"SUBTOTAL(109,ยอดขายเดือนมิถุนายน[ราคา\nซื้อ])","v":{"v":0,"d":"฿ 0.00"}},{"$f":"SUBTOTAL(109,ยอดขายเดือนมิถุนายน[ราคาขาย])","v":{"v":0,"d":"฿ 0.00"}},{"$f":"SUBTOTAL(109,ยอดขายเดือนมิถุนายน[ค่าธรรมเนียมออนไลน์])","v":{"v":0,"d":"฿ 0.00"}},{"$f":"SUBTOTAL(109,ยอดขายเดือนมิถุนายน[ค่าธรรมเนียม\nPayPal])","v":{"v":0,"d":"฿ 0.00"}},{"$f":"SUBTOTAL(109,ยอดขายเดือนมิถุนายน[ค่าธรรมเนียม\nบัตรเครดิต])","v":{"v":0,"d":"฿ 0.00"}},{"$f":"SUBTOTAL(109,ยอดขายเดือนมิถุนายน[ค่า\nจัดส่ง])","v":{"v":0,"d":"฿ 0.00"}},{"$f":"SUBTOTAL(109,ยอดขายเดือนมิถุนายน[ค่าธรรมเนียม\nการจัดส่ง])","v":{"v":0,"d":"฿ 0.00"}},{"$f":"SUBTOTAL(109,ยอดขายเดือนมิถุนายน[กำไร/ขาดทุน\nยอดขาย])","v":{"v":0,"d":"฿ 0.00"}},{"$f":"SUBTOTAL(109,ยอดขายเดือนมิถุนายน[กำไร/ขาดทุน\nการจัดส่ง])","v":{"v":0,"d":"฿ 0.00"}},{"$f":"SUBTOTAL(109,ยอดขายเดือนมิถุนายน[กำไร/ขาดทุน ผลรวม])","v":{"v":0,"d":"฿ 0.00"}}]
["กำไร/ขาดทุน แนวโน้ม"]

{"sheet":"กรกฎาคม","index":6,"n_rows":9,"n_cols":14,"rows_kept":9,"merged":[[3,0,4,0],[6,0,7,0]]}
["กรกฎาคม"]
["การขายแบบออนไลน์",null,"รหัส\nการประมูล","คำอธิบาย\nรายการ","ราคา\nซื้อ","ราคาขาย","ค่าธรรมเนียมออนไลน์","ค่าธรรมเนียม\nPayPal","ค่าธรรมเนียม\nบัตรเครดิต","ค่า\nจัดส่ง","ค่าธรรมเนียม\nการจัดส่ง","กำไร/ขาดทุน\nยอดขาย","กำไร/ขาดทุน\nการจัดส่ง","กำไร/ขาดทุน ผลรวม"]
["ปี",{"$nulls":11},{"$f":"ยอดขายเดือนกรกฎาคม[ค่า\nจัดส่ง]-ยอดขายเดือนกรกฎาคม[ค่าธรรมเนียม\nการจัดส่ง]","v":{"v":0,"d":"฿ 0.00"}},{"$f":"ยอดขายเดือนกรกฎาคม[กำไร/ขาดทุน\nยอดขาย]+ยอดขายเดือนกรกฎาคม[กำไร/ขาดทุน\nการจัดส่ง]","v":{"v":0,"d":"฿ 0.00"}}]
[{"$f":"SalesYear","v":2555},{"$nulls":11},{"$f":"ยอดขายเดือนกรกฎาคม[ค่า\nจัดส่ง]-ยอดขายเดือนกรกฎาคม[ค่าธรรมเนียม\nการจัดส่ง]","v":{"v":0,"d":"฿ 0.00"}},{"$f":"ยอดขายเดือนกรกฎาคม[กำไร/ขาดทุน\nยอดขาย]+ยอดขายเดือนกรกฎาคม[กำไร/ขาดทุน\nการจัดส่ง]","v":{"v":0,"d":"฿ 0.00"}}]
[{"$nulls":12},{"$f":"ยอดขายเดือนกรกฎาคม[ค่า\nจัดส่ง]-ยอดขายเดือนกรกฎาคม[ค่าธรรมเนียม\nการจัดส่ง]","v":{"v":0,"d":"฿ 0.00"}},{"$f":"ยอดขายเดือนกรกฎาคม[กำไร/ขาดทุน\nยอดขาย]+ยอดขายเดือนกรกฎาคม[กำไร/ขาดทุน\nการจัดส่ง]","v":{"v":0,"d":"฿ 0.00"}}]
["กำไร/ขาดทุน ผลรวม",{"$nulls":11},{"$f":"ยอดขายเดือนกรกฎาคม[ค่า\nจัดส่ง]-ยอดขายเดือนกรกฎาคม[ค่าธรรมเนียม\nการจัดส่ง]","v":{"v":0,"d":"฿ 0.00"}},{"$f":"ยอดขายเดือนกรกฎาคม[กำไร/ขาดทุน\nยอดขาย]+ยอดขายเดือนกรกฎาคม[กำไร/ขาดทุน\nการจัดส่ง]","v":{"v":0,"d":"฿ 0.00"}}]
[{"$f":"ยอดขายเดือนกรกฎาคม[[#Totals],[กำไร/ขาดทุน ผลรวม]]","v":{"v":0,"d":"฿0.00"}},{"$nulls":11},{"$f":"ยอดขายเดือนกรกฎาคม[ค่า\nจัดส่ง]-ยอดขายเดือนกรกฎาคม[ค่าธรรมเนียม\nการจัดส่ง]","v":{"v":0,"d":"฿ 0.00"}},{"$f":"ยอดขายเดือนกรกฎาคม[กำไร/ขาดทุน\nยอดขาย]+ยอดขายเดือนกรกฎาคม[กำไร/ขาดทุน\nการจัดส่ง]","v":{"v":0,"d":"฿ 0.00"}}]
[null,null,"  ผลรวม",{"$f":"\"รายการที่ขายได้: \"&SUBTOTAL(103,ยอดขายเดือนกรกฎาคม[คำอธิบาย\nรายการ])","v":"รายการที่ขายได้: 0"},{"$f":"SUBTOTAL(109,ยอดขายเดือนกรกฎาคม[ราคา\nซื้อ])","v":{"v":0,"d":"฿ 0.00"}},{"$f":"SUBTOTAL(109,ยอดขายเดือนกรกฎาคม[ราคาขาย])","v":{"v":0,"d":"฿ 0.00"}},{"$f":"SUBTOTAL(109,ยอดขายเดือนกรกฎาคม[ค่าธรรมเนียมออนไลน์])","v":{"v":0,"d":"฿ 0.00"}},{"$f":"SUBTOTAL(109,ยอดขายเดือนกรกฎาคม[ค่าธรรมเนียม\nPayPal])","v":{"v":0,"d":"฿ 0.00"}},{"$f":"SUBTOTAL(109,ยอดขายเดือนกรกฎาคม[ค่าธรรมเนียม\nบัตรเครดิต])","v":{"v":0,"d":"฿ 0.00"}},{"$f":"SUBTOTAL(109,ยอดขายเดือนกรกฎาคม[ค่า\nจัดส่ง])","v":{"v":0,"d":"฿ 0.00"}},{"$f":"SUBTOTAL(109,ยอดขายเดือนกรกฎาคม[ค่าธรรมเนียม\nการจัดส่ง])","v":{"v":0,"d":"฿ 0.00"}},{"$f":"SUBTOTAL(109,ยอดขายเดือนกรกฎาคม[กำไร/ขาดทุน\nยอดขาย])","v":{"v":0,"d":"฿ 0.00"}},{"$f":"SUBTOTAL(109,ยอดขายเดือนกรกฎาคม[กำไร/ขาดทุน\nการจัดส่ง])","v":{"v":0,"d":"฿ 0.00"}},{"$f":"SUBTOTAL(109,ยอดขายเดือนกรกฎาคม[กำไร/ขาดทุน ผลรวม])","v":{"v":0,"d":"฿ 0.00"}}]
["กำไร/ขาดทุน แนวโน้ม"]

{"sheet":"สิงหาคม","index":7,"n_rows":9,"n_cols":14,"rows_kept":9,"merged":[[3,0,4,0],[6,0,7,0]]}
["สิงหาคม"]
["การขายแบบออนไลน์",null,"รหัส\nการประมูล","คำอธิบาย\nรายการ","ราคา\nซื้อ","ราคาขาย","ค่าธรรมเนียมออนไลน์","ค่าธรรมเนียม\nPayPal","ค่าธรรมเนียม\nบัตรเครดิต","ค่า\nจัดส่ง","ค่าธรรมเนียม\nการจัดส่ง","กำไร/ขาดทุน\nยอดขาย","กำไร/ขาดทุน\nการจัดส่ง","กำไร/ขาดทุน ผลรวม"]
["ปี",{"$nulls":11},{"$f":"ยอดขายเดือนสิงหาคม[ค่า\nจัดส่ง]-ยอดขายเดือนสิงหาคม[ค่าธรรมเนียม\nการจัดส่ง]","v":{"v":0,"d":"฿ 0.00"}},{"$f":"ยอดขายเดือนสิงหาคม[กำไร/ขาดทุน\nยอดขาย]+ยอดขายเดือนสิงหาคม[กำไร/ขาดทุน\nการจัดส่ง]","v":{"v":0,"d":"฿ 0.00"}}]
[{"$f":"SalesYear","v":2555},{"$nulls":11},{"$f":"ยอดขายเดือนสิงหาคม[ค่า\nจัดส่ง]-ยอดขายเดือนสิงหาคม[ค่าธรรมเนียม\nการจัดส่ง]","v":{"v":0,"d":"฿ 0.00"}},{"$f":"ยอดขายเดือนสิงหาคม[กำไร/ขาดทุน\nยอดขาย]+ยอดขายเดือนสิงหาคม[กำไร/ขาดทุน\nการจัดส่ง]","v":{"v":0,"d":"฿ 0.00"}}]
[{"$nulls":12},{"$f":"ยอดขายเดือนสิงหาคม[ค่า\nจัดส่ง]-ยอดขายเดือนสิงหาคม[ค่าธรรมเนียม\nการจัดส่ง]","v":{"v":0,"d":"฿ 0.00"}},{"$f":"ยอดขายเดือนสิงหาคม[กำไร/ขาดทุน\nยอดขาย]+ยอดขายเดือนสิงหาคม[กำไร/ขาดทุน\nการจัดส่ง]","v":{"v":0,"d":"฿ 0.00"}}]
["กำไร/ขาดทุน ผลรวม",{"$nulls":11},{"$f":"ยอดขายเดือนสิงหาคม[ค่า\nจัดส่ง]-ยอดขายเดือนสิงหาคม[ค่าธรรมเนียม\nการจัดส่ง]","v":{"v":0,"d":"฿ 0.00"}},{"$f":"ยอดขายเดือนสิงหาคม[กำไร/ขาดทุน\nยอดขาย]+ยอดขายเดือนสิงหาคม[กำไร/ขาดทุน\nการจัดส่ง]","v":{"v":0,"d":"฿ 0.00"}}]
[{"$f":"ยอดขายเดือนสิงหาคม[[#Totals],[กำไร/ขาดทุน ผลรวม]]","v":{"v":0,"d":"฿0.00"}},{"$nulls":11},{"$f":"ยอดขายเดือนสิงหาคม[ค่า\nจัดส่ง]-ยอดขายเดือนสิงหาคม[ค่าธรรมเนียม\nการจัดส่ง]","v":{"v":0,"d":"฿ 0.00"}},{"$f":"ยอดขายเดือนสิงหาคม[กำไร/ขาดทุน\nยอดขาย]+ยอดขายเดือนสิงหาคม[กำไร/ขาดทุน\nการจัดส่ง]","v":{"v":0,"d":"฿ 0.00"}}]
[null,null,"  ผลรวม",{"$f":"\"รายการที่ขายได้: \"&SUBTOTAL(103,ยอดขายเดือนสิงหาคม[คำอธิบาย\nรายการ])","v":"รายการที่ขายได้: 0"},{"$f":"SUBTOTAL(109,ยอดขายเดือนสิงหาคม[ราคา\nซื้อ])","v":{"v":0,"d":"฿ 0.00"}},{"$f":"SUBTOTAL(109,ยอดขายเดือนสิงหาคม[ราคาขาย])","v":{"v":0,"d":"฿ 0.00"}},{"$f":"SUBTOTAL(109,ยอดขายเดือนสิงหาคม[ค่าธรรมเนียมออนไลน์])","v":{"v":0,"d":"฿ 0.00"}},{"$f":"SUBTOTAL(109,ยอดขายเดือนสิงหาคม[ค่าธรรมเนียม\nPayPal])","v":{"v":0,"d":"฿ 0.00"}},{"$f":"SUBTOTAL(109,ยอดขายเดือนสิงหาคม[ค่าธรรมเนียม\nบัตรเครดิต])","v":{"v":0,"d":"฿ 0.00"}},{"$f":"SUBTOTAL(109,ยอดขายเดือนสิงหาคม[ค่า\nจัดส่ง])","v":{"v":0,"d":"฿ 0.00"}},{"$f":"SUBTOTAL(109,ยอดขายเดือนสิงหาคม[ค่าธรรมเนียม\nการจัดส่ง])","v":{"v":0,"d":"฿ 0.00"}},{"$f":"SUBTOTAL(109,ยอดขายเดือนสิงหาคม[กำไร/ขาดทุน\nยอดขาย])","v":{"v":0,"d":"฿ 0.00"}},{"$f":"SUBTOTAL(109,ยอดขายเดือนสิงหาคม[กำไร/ขาดทุน\nการจัดส่ง])","v":{"v":0,"d":"฿ 0.00"}},{"$f":"SUBTOTAL(109,ยอดขายเดือนสิงหาคม[กำไร/ขาดทุน ผลรวม])","v":{"v":0,"d":"฿ 0.00"}}]
["กำไร/ขาดทุน แนวโน้ม"]

{"sheet":"กันยายน","index":8,"n_rows":9,"n_cols":14,"rows_kept":9,"merged":[[3,0,4,0],[6,0,7,0]]}
["กันยายน"]
["การขายแบบออนไลน์",null,"รหัส\nการประมูล","คำอธิบาย\nรายการ","ราคา\nซื้อ","ราคาขาย","ค่าธรรมเนียมออนไลน์","ค่าธรรมเนียม\nPayPal","ค่าธรรมเนียม\nบัตรเครดิต","ค่า\nจัดส่ง","ค่าธรรมเนียม\nการจัดส่ง","กำไร/ขาดทุน\nยอดขาย","กำไร/ขาดทุน\nการจัดส่ง","กำไร/ขาดทุน ผลรวม"]
["ปี",{"$nulls":11},{"$f":"ยอดขายเดือนกันยายน[ค่า\nจัดส่ง]-ยอดขายเดือนกันยายน[ค่าธรรมเนียม\nการจัดส่ง]","v":{"v":0,"d":"฿ 0.00"}},{"$f":"ยอดขายเดือนกันยายน[กำไร/ขาดทุน\nยอดขาย]+ยอดขายเดือนกันยายน[กำไร/ขาดทุน\nการจัดส่ง]","v":{"v":0,"d":"฿ 0.00"}}]
[{"$f":"SalesYear","v":2555},{"$nulls":11},{"$f":"ยอดขายเดือนกันยายน[ค่า\nจัดส่ง]-ยอดขายเดือนกันยายน[ค่าธรรมเนียม\nการจัดส่ง]","v":{"v":0,"d":"฿ 0.00"}},{"$f":"ยอดขายเดือนกันยายน[กำไร/ขาดทุน\nยอดขาย]+ยอดขายเดือนกันยายน[กำไร/ขาดทุน\nการจัดส่ง]","v":{"v":0,"d":"฿ 0.00"}}]
[{"$nulls":12},{"$f":"ยอดขายเดือนกันยายน[ค่า\nจัดส่ง]-ยอดขายเดือนกันยายน[ค่าธรรมเนียม\nการจัดส่ง]","v":{"v":0,"d":"฿ 0.00"}},{"$f":"ยอดขายเดือนกันยายน[กำไร/ขาดทุน\nยอดขาย]+ยอดขายเดือนกันยายน[กำไร/ขาดทุน\nการจัดส่ง]","v":{"v":0,"d":"฿ 0.00"}}]
["กำไร/ขาดทุน ผลรวม",{"$nulls":11},{"$f":"ยอดขายเดือนกันยายน[ค่า\nจัดส่ง]-ยอดขายเดือนกันยายน[ค่าธรรมเนียม\nการจัดส่ง]","v":{"v":0,"d":"฿ 0.00"}},{"$f":"ยอดขายเดือนกันยายน[กำไร/ขาดทุน\nยอดขาย]+ยอดขายเดือนกันยายน[กำไร/ขาดทุน\nการจัดส่ง]","v":{"v":0,"d":"฿ 0.00"}}]
[{"$f":"ยอดขายเดือนกันยายน[[#Totals],[กำไร/ขาดทุน ผลรวม]]","v":{"v":0,"d":"฿0.00"}},{"$nulls":11},{"$f":"ยอดขายเดือนกันยายน[ค่า\nจัดส่ง]-ยอดขายเดือนกันยายน[ค่าธรรมเนียม\nการจัดส่ง]","v":{"v":0,"d":"฿ 0.00"}},{"$f":"ยอดขายเดือนกันยายน[กำไร/ขาดทุน\nยอดขาย]+ยอดขายเดือนกันยายน[กำไร/ขาดทุน\nการจัดส่ง]","v":{"v":0,"d":"฿ 0.00"}}]
[null,null," ผลรวม",{"$f":"\"รายการที่ขายได้: \"&SUBTOTAL(103,ยอดขายเดือนกันยายน[คำอธิบาย\nรายการ])","v":"รายการที่ขายได้: 0"},{"$f":"SUBTOTAL(109,ยอดขายเดือนกันยายน[ราคา\nซื้อ])","v":{"v":0,"d":"฿ 0.00"}},{"$f":"SUBTOTAL(109,ยอดขายเดือนกันยายน[ราคาขาย])","v":{"v":0,"d":"฿ 0.00"}},{"$f":"SUBTOTAL(109,ยอดขายเดือนกันยายน[ค่าธรรมเนียมออนไลน์])","v":{"v":0,"d":"฿ 0.00"}},{"$f":"SUBTOTAL(109,ยอดขายเดือนกันยายน[ค่าธรรมเนียม\nPayPal])","v":{"v":0,"d":"฿ 0.00"}},{"$f":"SUBTOTAL(109,ยอดขายเดือนกันยายน[ค่าธรรมเนียม\nบัตรเครดิต])","v":{"v":0,"d":"฿ 0.00"}},{"$f":"SUBTOTAL(109,ยอดขายเดือนกันยายน[ค่า\nจัดส่ง])","v":{"v":0,"d":"฿ 0.00"}},{"$f":"SUBTOTAL(109,ยอดขายเดือนกันยายน[ค่าธรรมเนียม\nการจัดส่ง])","v":{"v":0,"d":"฿ 0.00"}},{"$f":"SUBTOTAL(109,ยอดขายเดือนกันยายน[กำไร/ขาดทุน\nยอดขาย])","v":{"v":0,"d":"฿ 0.00"}},{"$f":"SUBTOTAL(109,ยอดขายเดือนกันยายน[กำไร/ขาดทุน\nการจัดส่ง])","v":{"v":0,"d":"฿ 0.00"}},{"$f":"SUBTOTAL(109,ยอดขายเดือนกันยายน[กำไร/ขาดทุน ผลรวม])","v":{"v":0,"d":"฿ 0.00"}}]
["กำไร/ขาดทุน แนวโน้ม"]

{"sheet":"ตุลาคม","index":9,"n_rows":9,"n_cols":14,"rows_kept":9,"merged":[[3,0,4,0],[6,0,7,0]]}
["ตุลาคม"]
["การขายแบบออนไลน์",null,"รหัส\nการประมูล","คำอธิบาย\nรายการ","ราคา\nซื้อ","ราคาขาย","ค่าธรรมเนียมออนไลน์","ค่าธรรมเนียม\nPayPal","ค่าธรรมเนียม\nบัตรเครดิต","ค่า\nจัดส่ง","ค่าธรรมเนียม\nการจัดส่ง","กำไร/ขาดทุน\nยอดขาย","กำไร/ขาดทุน\nการจัดส่ง","กำไร/ขาดทุน ผลรวม"]
["ปี",{"$nulls":11},{"$f":"ยอดขายเดือนตุลาคม[ค่า\nจัดส่ง]-ยอดขายเดือนตุลาคม[ค่าธรรมเนียม\nการจัดส่ง]","v":{"v":0,"d":"฿ 0.00"}},{"$f":"ยอดขายเดือนตุลาคม[กำไร/ขาดทุน\nยอดขาย]+ยอดขายเดือนตุลาคม[กำไร/ขาดทุน\nการจัดส่ง]","v":{"v":0,"d":"฿ 0.00"}}]
[{"$f":"SalesYear","v":2555},{"$nulls":11},{"$f":"ยอดขายเดือนตุลาคม[ค่า\nจัดส่ง]-ยอดขายเดือนตุลาคม[ค่าธรรมเนียม\nการจัดส่ง]","v":{"v":0,"d":"฿ 0.00"}},{"$f":"ยอดขายเดือนตุลาคม[กำไร/ขาดทุน\nยอดขาย]+ยอดขายเดือนตุลาคม[กำไร/ขาดทุน\nการจัดส่ง]","v":{"v":0,"d":"฿ 0.00"}}]
[{"$nulls":12},{"$f":"ยอดขายเดือนตุลาคม[ค่า\nจัดส่ง]-ยอดขายเดือนตุลาคม[ค่าธรรมเนียม\nการจัดส่ง]","v":{"v":0,"d":"฿ 0.00"}},{"$f":"ยอดขายเดือนตุลาคม[กำไร/ขาดทุน\nยอดขาย]+ยอดขายเดือนตุลาคม[กำไร/ขาดทุน\nการจัดส่ง]","v":{"v":0,"d":"฿ 0.00"}}]
["กำไร/ขาดทุน ผลรวม",{"$nulls":11},{"$f":"ยอดขายเดือนตุลาคม[ค่า\nจัดส่ง]-ยอดขายเดือนตุลาคม[ค่าธรรมเนียม\nการจัดส่ง]","v":{"v":0,"d":"฿ 0.00"}},{"$f":"ยอดขายเดือนตุลาคม[กำไร/ขาดทุน\nยอดขาย]+ยอดขายเดือนตุลาคม[กำไร/ขาดทุน\nการจัดส่ง]","v":{"v":0,"d":"฿ 0.00"}}]
[{"$f":"ยอดขายเดือนตุลาคม[[#Totals],[กำไร/ขาดทุน ผลรวม]]","v":{"v":0,"d":"฿0.00"}},{"$nulls":11},{"$f":"ยอดขายเดือนตุลาคม[ค่า\nจัดส่ง]-ยอดขายเดือนตุลาคม[ค่าธรรมเนียม\nการจัดส่ง]","v":{"v":0,"d":"฿ 0.00"}},{"$f":"ยอดขายเดือนตุลาคม[กำไร/ขาดทุน\nยอดขาย]+ยอดขายเดือนตุลาคม[กำไร/ขาดทุน\nการจัดส่ง]","v":{"v":0,"d":"฿ 0.00"}}]
[null,null," ผลรวม",{"$f":"\"รายการที่ขายได้: \"&SUBTOTAL(103,ยอดขายเดือนตุลาคม[คำอธิบาย\nรายการ])","v":"รายการที่ขายได้: 0"},{"$f":"SUBTOTAL(109,ยอดขายเดือนตุลาคม[ราคา\nซื้อ])","v":{"v":0,"d":"฿ 0.00"}},{"$f":"SUBTOTAL(109,ยอดขายเดือนตุลาคม[ราคาขาย])","v":{"v":0,"d":"฿ 0.00"}},{"$f":"SUBTOTAL(109,ยอดขายเดือนตุลาคม[ค่าธรรมเนียมออนไลน์])","v":{"v":0,"d":"฿ 0.00"}},{"$f":"SUBTOTAL(109,ยอดขายเดือนตุลาคม[ค่าธรรมเนียม\nPayPal])","v":{"v":0,"d":"฿ 0.00"}},{"$f":"SUBTOTAL(109,ยอดขายเดือนตุลาคม[ค่าธรรมเนียม\nบัตรเครดิต])","v":{"v":0,"d":"฿ 0.00"}},{"$f":"SUBTOTAL(109,ยอดขายเดือนตุลาคม[ค่า\nจัดส่ง])","v":{"v":0,"d":"฿ 0.00"}},{"$f":"SUBTOTAL(109,ยอดขายเดือนตุลาคม[ค่าธรรมเนียม\nการจัดส่ง])","v":{"v":0,"d":"฿ 0.00"}},{"$f":"SUBTOTAL(109,ยอดขายเดือนตุลาคม[กำไร/ขาดทุน\nยอดขาย])","v":{"v":0,"d":"฿ 0.00"}},{"$f":"SUBTOTAL(109,ยอดขายเดือนตุลาคม[กำไร/ขาดทุน\nการจัดส่ง])","v":{"v":0,"d":"฿ 0.00"}},{"$f":"SUBTOTAL(109,ยอดขายเดือนตุลาคม[กำไร/ขาดทุน ผลรวม])","v":{"v":0,"d":"฿ 0.00"}}]
["กำไร/ขาดทุน แนวโน้ม"]

{"sheet":"พฤศจิกายน","index":10,"n_rows":9,"n_cols":14,"rows_kept":9,"merged":[[3,0,4,0],[6,0,7,0]]}
["พฤศจิกายน"]
["การขายแบบออนไลน์",null,"รหัส\nการประมูล","คำอธิบาย\nรายการ","ราคา\nซื้อ","ราคาขาย","ค่าธรรมเนียมออนไลน์","ค่าธรรมเนียม\nPayPal","ค่าธรรมเนียม\nบัตรเครดิต","ค่า\nจัดส่ง","ค่าธรรมเนียม\nการจัดส่ง","กำไร/ขาดทุน\nยอดขาย","กำไร/ขาดทุน\nการจัดส่ง","กำไร/ขาดทุน ผลรวม"]
["ปี",{"$nulls":11},{"$f":"ยอดขายเดือนพฤศจิกายน[ค่า\nจัดส่ง]-ยอดขายเดือนพฤศจิกายน[ค่าธรรมเนียม\nการจัดส่ง]","v":{"v":0,"d":"฿ 0.00"}},{"$f":"ยอดขายเดือนพฤศจิกายน[กำไร/ขาดทุน\nยอดขาย]+ยอดขายเดือนพฤศจิกายน[กำไร/ขาดทุน\nการจัดส่ง]","v":{"v":0,"d":"฿ 0.00"}}]
[{"$f":"SalesYear","v":2555},{"$nulls":11},{"$f":"ยอดขายเดือนพฤศจิกายน[ค่า\nจัดส่ง]-ยอดขายเดือนพฤศจิกายน[ค่าธรรมเนียม\nการจัดส่ง]","v":{"v":0,"d":"฿ 0.00"}},{"$f":"ยอดขายเดือนพฤศจิกายน[กำไร/ขาดทุน\nยอดขาย]+ยอดขายเดือนพฤศจิกายน[กำไร/ขาดทุน\nการจัดส่ง]","v":{"v":0,"d":"฿ 0.00"}}]
[{"$nulls":12},{"$f":"ยอดขายเดือนพฤศจิกายน[ค่า\nจัดส่ง]-ยอดขายเดือนพฤศจิกายน[ค่าธรรมเนียม\nการจัดส่ง]","v":{"v":0,"d":"฿ 0.00"}},{"$f":"ยอดขายเดือนพฤศจิกายน[กำไร/ขาดทุน\nยอดขาย]+ยอดขายเดือนพฤศจิกายน[กำไร/ขาดทุน\nการจัดส่ง]","v":{"v":0,"d":"฿ 0.00"}}]
["กำไร/ขาดทุน ผลรวม",{"$nulls":11},{"$f":"ยอดขายเดือนพฤศจิกายน[ค่า\nจัดส่ง]-ยอดขายเดือนพฤศจิกายน[ค่าธรรมเนียม\nการจัดส่ง]","v":{"v":0,"d":"฿ 0.00"}},{"$f":"ยอดขายเดือนพฤศจิกายน[กำไร/ขาดทุน\nยอดขาย]+ยอดขายเดือนพฤศจิกายน[กำไร/ขาดทุน\nการจัดส่ง]","v":{"v":0,"d":"฿ 0.00"}}]
[{"$f":"ยอดขายเดือนพฤศจิกายน[[#Totals],[กำไร/ขาดทุน ผลรวม]]","v":{"v":0,"d":"฿0.00"}},{"$nulls":11},{"$f":"ยอดขายเดือนพฤศจิกายน[ค่า\nจัดส่ง]-ยอดขายเดือนพฤศจิกายน[ค่าธรรมเนียม\nการจัดส่ง]","v":{"v":0,"d":"฿ 0.00"}},{"$f":"ยอดขายเดือนพฤศจิกายน[กำไร/ขาดทุน\nยอดขาย]+ยอดขายเดือนพฤศจิกายน[กำไร/ขาดทุน\nการจัดส่ง]","v":{"v":0,"d":"฿ 0.00"}}]
[null,null,"  ผลรวม",{"$f":"\"รายการที่ขายได้: \"&SUBTOTAL(103,ยอดขายเดือนพฤศจิกายน[คำอธิบาย\nรายการ])","v":"รายการที่ขายได้: 0"},{"$f":"SUBTOTAL(109,ยอดขายเดือนพฤศจิกายน[ราคา\nซื้อ])","v":{"v":0,"d":"฿ 0.00"}},{"$f":"SUBTOTAL(109,ยอดขายเดือนพฤศจิกายน[ราคาขาย])","v":{"v":0,"d":"฿ 0.00"}},{"$f":"SUBTOTAL(109,ยอดขายเดือนพฤศจิกายน[ค่าธรรมเนียมออนไลน์])","v":{"v":0,"d":"฿ 0.00"}},{"$f":"SUBTOTAL(109,ยอดขายเดือนพฤศจิกายน[ค่าธรรมเนียม\nPayPal])","v":{"v":0,"d":"฿ 0.00"}},{"$f":"SUBTOTAL(109,ยอดขายเดือนพฤศจิกายน[ค่าธรรมเนียม\nบัตรเครดิต])","v":{"v":0,"d":"฿ 0.00"}},{"$f":"SUBTOTAL(109,ยอดขายเดือนพฤศจิกายน[ค่า\nจัดส่ง])","v":{"v":0,"d":"฿ 0.00"}},{"$f":"SUBTOTAL(109,ยอดขายเดือนพฤศจิกายน[ค่าธรรมเนียม\nการจัดส่ง])","v":{"v":0,"d":"฿ 0.00"}},{"$f":"SUBTOTAL(109,ยอดขายเดือนพฤศจิกายน[กำไร/ขาดทุน\nยอดขาย])","v":{"v":0,"d":"฿ 0.00"}},{"$f":"SUBTOTAL(109,ยอดขายเดือนพฤศจิกายน[กำไร/ขาดทุน\nการจัดส่ง])","v":{"v":0,"d":"฿ 0.00"}},{"$f":"SUBTOTAL(109,ยอดขายเดือนพฤศจิกายน[กำไร/ขาดทุน ผลรวม])","v":{"v":0,"d":"฿ 0.00"}}]
["กำไร/ขาดทุน แนวโน้ม"]

{"sheet":"ธันวาคม","index":11,"n_rows":9,"n_cols":14,"rows_kept":9,"merged":[[3,0,4,0],[6,0,7,0]]}
["ธันวาคม"]
["การขายแบบออนไลน์",null,"รหัส\nการประมูล","คำอธิบาย\nรายการ","ราคา\nซื้อ","ราคาขาย","ค่าธรรมเนียมออนไลน์","ค่าธรรมเนียม\nPayPal","ค่าธรรมเนียม\nบัตรเครดิต","ค่า\nจัดส่ง","ค่าธรรมเนียม\nการจัดส่ง","กำไร/ขาดทุน\nยอดขาย","กำไร/ขาดทุน\nการจัดส่ง","กำไร/ขาดทุน ผลรวม"]
["ปี",{"$nulls":11},{"$f":"ยอดขายเดือนธันวาคม[ค่า\nจัดส่ง]-ยอดขายเดือนธันวาคม[ค่าธรรมเนียม\nการจัดส่ง]","v":{"v":0,"d":"฿ 0.00"}},{"$f":"ยอดขายเดือนธันวาคม[กำไร/ขาดทุน\nยอดขาย]+ยอดขายเดือนธันวาคม[กำไร/ขาดทุน\nการจัดส่ง]","v":{"v":0,"d":"฿ 0.00"}}]
[{"$f":"SalesYear","v":2555},{"$nulls":11},{"$f":"ยอดขายเดือนธันวาคม[ค่า\nจัดส่ง]-ยอดขายเดือนธันวาคม[ค่าธรรมเนียม\nการจัดส่ง]","v":{"v":0,"d":"฿ 0.00"}},{"$f":"ยอดขายเดือนธันวาคม[กำไร/ขาดทุน\nยอดขาย]+ยอดขายเดือนธันวาคม[กำไร/ขาดทุน\nการจัดส่ง]","v":{"v":0,"d":"฿ 0.00"}}]
[{"$nulls":12},{"$f":"ยอดขายเดือนธันวาคม[ค่า\nจัดส่ง]-ยอดขายเดือนธันวาคม[ค่าธรรมเนียม\nการจัดส่ง]","v":{"v":0,"d":"฿ 0.00"}},{"$f":"ยอดขายเดือนธันวาคม[กำไร/ขาดทุน\nยอดขาย]+ยอดขายเดือนธันวาคม[กำไร/ขาดทุน\nการจัดส่ง]","v":{"v":0,"d":"฿ 0.00"}}]
["กำไร/ขาดทุน ผลรวม",{"$nulls":11},{"$f":"ยอดขายเดือนธันวาคม[ค่า\nจัดส่ง]-ยอดขายเดือนธันวาคม[ค่าธรรมเนียม\nการจัดส่ง]","v":{"v":0,"d":"฿ 0.00"}},{"$f":"ยอดขายเดือนธันวาคม[กำไร/ขาดทุน\nยอดขาย]+ยอดขายเดือนธันวาคม[กำไร/ขาดทุน\nการจัดส่ง]","v":{"v":0,"d":"฿ 0.00"}}]
[{"$f":"ยอดขายเดือนธันวาคม[[#Totals],[กำไร/ขาดทุน ผลรวม]]","v":{"v":0,"d":"฿0.00"}},{"$nulls":11},{"$f":"ยอดขายเดือนธันวาคม[ค่า\nจัดส่ง]-ยอดขายเดือนธันวาคม[ค่าธรรมเนียม\nการจัดส่ง]","v":{"v":0,"d":"฿ 0.00"}},{"$f":"ยอดขายเดือนธันวาคม[กำไร/ขาดทุน\nยอดขาย]+ยอดขายเดือนธันวาคม[กำไร/ขาดทุน\nการจัดส่ง]","v":{"v":0,"d":"฿ 0.00"}}]
[null,null," ผลรวม",{"$f":"\"รายการที่ขายได้: \"&SUBTOTAL(103,ยอดขายเดือนธันวาคม[คำอธิบาย\nรายการ])","v":"รายการที่ขายได้: 0"},{"$f":"SUBTOTAL(109,ยอดขายเดือนธันวาคม[ราคา\nซื้อ])","v":{"v":0,"d":"฿ 0.00"}},{"$f":"SUBTOTAL(109,ยอดขายเดือนธันวาคม[ราคาขาย])","v":{"v":0,"d":"฿ 0.00"}},{"$f":"SUBTOTAL(109,ยอดขายเดือนธันวาคม[ค่าธรรมเนียมออนไลน์])","v":{"v":0,"d":"฿ 0.00"}},{"$f":"SUBTOTAL(109,ยอดขายเดือนธันวาคม[ค่าธรรมเนียม\nPayPal])","v":{"v":0,"d":"฿ 0.00"}},{"$f":"SUBTOTAL(109,ยอดขายเดือนธันวาคม[ค่าธรรมเนียม\nบัตรเครดิต])","v":{"v":0,"d":"฿ 0.00"}},{"$f":"SUBTOTAL(109,ยอดขายเดือนธันวาคม[ค่า\nจัดส่ง])","v":{"v":0,"d":"฿ 0.00"}},{"$f":"SUBTOTAL(109,ยอดขายเดือนธันวาคม[ค่าธรรมเนียม\nการจัดส่ง])","v":{"v":0,"d":"฿ 0.00"}},{"$f":"SUBTOTAL(109,ยอดขายเดือนธันวาคม[กำไร/ขาดทุน\nยอดขาย])","v":{"v":0,"d":"฿ 0.00"}},{"$f":"SUBTOTAL(109,ยอดขายเดือนธันวาคม[กำไร/ขาดทุน\nการจัดส่ง])","v":{"v":0,"d":"฿ 0.00"}},{"$f":"SUBTOTAL(109,ยอดขายเดือนธันวาคม[กำไร/ขาดทุน ผลรวม])","v":{"v":0,"d":"฿ 0.00"}}]
["กำไร/ขาดทุน แนวโน้ม"]

{"sheet":"สรุปจนถึงปัจจุบัน","index":12,"n_rows":16,"n_cols":11,"rows_kept":16,"merged":[[3,0,4,0],[6,0,7,0]]}
["สรุป"]
["จนถึงปัจจุบัน",null,"กำไร/ขาดทุน",{"$nulls":4}," กำไร/ขาดทุน จนถึงปัจจุบัน"]
["ปี",{"$nulls":6},"เดือน","กำไร/ขาดทุน ยอดขาย","กำไร/ขาดทุน การจัดส่ง","กำไร/ขาดทุน ผลรวม"]
[{"$f":"SalesYear","v":2555},{"$nulls":6},"มกราคม",{"$f":"ยอดขายเดือนมกราคม[[#Totals],[กำไร/ขาดทุน\nยอดขาย]]","v":{"v":79.5,"d":"฿ 79.50"}},{"$f":"ยอดขายเดือนมกราคม[[#Totals],[กำไร/ขาดทุน\nการจัดส่ง]]","v":{"v":9.5,"d":"฿ 9.50"}},{"$f":"IF(AND(สรุปตั้งแต่ต้นปี[[#This Row],[กำไร/ขาดทุน ยอดขาย]]<>\"\",สรุปตั้งแต่ต้นปี[[#This Row],[กำไร/ขาดทุน การจัดส่ง]]<>\"\"),สรุปตั้งแต่ต้นปี[[#This Row],[กำไร/ขาดทุน ยอดขาย]]+สรุปตั้งแต่ต้นปี[[#This Row],[กำไร/ขาดทุน การจัดส่ง]],\"\")","v":{"v":89,"d":"฿ 89.00"}}]
[{"$nulls":7},"กุมภาพันธ์",{"$f":"ยอดขายเดือนกุมภาพันธ์[[#Totals],[กำไร/ขาดทุน\nยอดขาย]]","v":{"v":212.3,"d":"฿ 212.30"}},{"$f":"ยอดขายเดือนกุมภาพันธ์[[#Totals],[กำไร/ขาดทุน\nการจัดส่ง]]","v":{"v":12.3,"d":"฿ 12.30"}},{"$f":"IF(AND(สรุปตั้งแต่ต้นปี[[#This Row],[กำไร/ขาดทุน ยอดขาย]]<>\"\",สรุปตั้งแต่ต้นปี[[#This Row],[กำไร/ขาดทุน การจัดส่ง]]<>\"\"),สรุปตั้งแต่ต้นปี[[#This Row],[กำไร/ขาดทุน ยอดขาย]]+สรุปตั้งแต่ต้นปี[[#This Row],[กำไร/ขาดทุน การจัดส่ง]],\"\")","v":{"v":224.60000000000002,"d":"฿ 224.60"}}]
["แนวโน้มการขายรายเดือน:",{"$nulls":6},"มีนาคม",{"$f":"ยอดขายเดือนมีนาคม[[#Totals],[กำไร/ขาดทุน\nยอดขาย]]","v":{"v":0,"d":"฿ 0.00"}},{"$f":"ยอดขายเดือนมีนาคม[[#Totals],[กำไร/ขาดทุน\nการจัดส่ง]]","v":{"v":0,"d":"฿ 0.00"}},{"$f":"IF(AND(สรุปตั้งแต่ต้นปี[[#This Row],[กำไร/ขาดทุน ยอดขาย]]<>\"\",สรุปตั้งแต่ต้นปี[[#This Row],[กำไร/ขาดทุน การจัดส่ง]]<>\"\"),สรุปตั้งแต่ต้นปี[[#This Row],[กำไร/ขาดทุน ยอดขาย]]+สรุปตั้งแต่ต้นปี[[#This Row],[กำไร/ขาดทุน การจัดส่ง]],\"\")","v":{"v":0,"d":"฿ 0.00"}}]
[{"$nulls":7},"เมษายน",{"$f":"ยอดขายเดือนเมษายน[[#Totals],[กำไร/ขาดทุน\nยอดขาย]]","v":{"v":0,"d":"฿ 0.00"}},{"$f":"ยอดขายเดือนเมษายน[[#Totals],[กำไร/ขาดทุน\nการจัดส่ง]]","v":{"v":0,"d":"฿ 0.00"}},{"$f":"IF(AND(สรุปตั้งแต่ต้นปี[[#This Row],[กำไร/ขาดทุน ยอดขาย]]<>\"\",สรุปตั้งแต่ต้นปี[[#This Row],[กำไร/ขาดทุน การจัดส่ง]]<>\"\"),สรุปตั้งแต่ต้นปี[[#This Row],[กำไร/ขาดทุน ยอดขาย]]+สรุปตั้งแต่ต้นปี[[#This Row],[กำไร/ขาดทุน การจัดส่ง]],\"\")","v":{"v":0,"d":"฿ 0.00"}}]
[{"$nulls":7},"พฤษภาคม",{"$f":"ยอดขายเดือนพฤษภาคม[[#Totals],[กำไร/ขาดทุน\nยอดขาย]]","v":{"v":0,"d":"฿ 0.00"}},{"$f":"ยอดขายเดือนพฤษภาคม[[#Totals],[กำไร/ขาดทุน\nการจัดส่ง]]","v":{"v":0,"d":"฿ 0.00"}},{"$f":"IF(AND(สรุปตั้งแต่ต้นปี[[#This Row],[กำไร/ขาดทุน ยอดขาย]]<>\"\",สรุปตั้งแต่ต้นปี[[#This Row],[กำไร/ขาดทุน การจัดส่ง]]<>\"\"),สรุปตั้งแต่ต้นปี[[#This Row],[กำไร/ขาดทุน ยอดขาย]]+สรุปตั้งแต่ต้นปี[[#This Row],[กำไร/ขาดทุน การจัดส่ง]],\"\")","v":{"v":0,"d":"฿ 0.00"}}]
[{"$nulls":7},"มิถุนายน",{"$f":"ยอดขายเดือนมิถุนายน[[#Totals],[กำไร/ขาดทุน\nยอดขาย]]","v":{"v":0,"d":"฿ 0.00"}},{"$f":"ยอดขายเดือนมิถุนายน[[#Totals],[กำไร/ขาดทุน\nการจัดส่ง]]","v":{"v":0,"d":"฿ 0.00"}},{"$f":"IF(AND(สรุปตั้งแต่ต้นปี[[#This Row],[กำไร/ขาดทุน ยอดขาย]]<>\"\",สรุปตั้งแต่ต้นปี[[#This Row],[กำไร/ขาดทุน การจัดส่ง]]<>\"\"),สรุปตั้งแต่ต้นปี[[#This Row],[กำไร/ขาดทุน ยอดขาย]]+สรุปตั้งแต่ต้นปี[[#This Row],[กำไร/ขาดทุน การจัดส่ง]],\"\")","v":{"v":0,"d":"฿ 0.00"}}]
[{"$nulls":7},"กรกฎาคม",{"$f":"ยอดขายเดือนกรกฎาคม[[#Totals],[กำไร/ขาดทุน\nยอดขาย]]","v":{"v":0,"d":"฿ 0.00"}},{"$f":"ยอดขายเดือนกรกฎาคม[[#Totals],[กำไร/ขาดทุน\nการจัดส่ง]]","v":{"v":0,"d":"฿ 0.00"}},{"$f":"IF(AND(สรุปตั้งแต่ต้นปี[[#This Row],[กำไร/ขาดทุน ยอดขาย]]<>\"\",สรุปตั้งแต่ต้นปี[[#This Row],[กำไร/ขาดทุน การจัดส่ง]]<>\"\"),สรุปตั้งแต่ต้นปี[[#This Row],[กำไร/ขาดทุน ยอดขาย]]+สรุปตั้งแต่ต้นปี[[#This Row],[กำไร/ขาดทุน การจัดส่ง]],\"\")","v":{"v":0,"d":"฿ 0.00"}}]
[{"$nulls":7},"สิงหาคม",{"$f":"ยอดขายเดือนสิงหาคม[[#Totals],[กำไร/ขาดทุน\nยอดขาย]]","v":{"v":0,"d":"฿ 0.00"}},{"$f":"ยอดขายเดือนสิงหาคม[[#Totals],[กำไร/ขาดทุน\nการจัดส่ง]]","v":{"v":0,"d":"฿ 0.00"}},{"$f":"IF(AND(สรุปตั้งแต่ต้นปี[[#This Row],[กำไร/ขาดทุน ยอดขาย]]<>\"\",สรุปตั้งแต่ต้นปี[[#This Row],[กำไร/ขาดทุน การจัดส่ง]]<>\"\"),สรุปตั้งแต่ต้นปี[[#This Row],[กำไร/ขาดทุน ยอดขาย]]+สรุปตั้งแต่ต้นปี[[#This Row],[กำไร/ขาดทุน การจัดส่ง]],\"\")","v":{"v":0,"d":"฿ 0.00"}}]
[{"$nulls":7},"กันยายน",{"$f":"ยอดขายเดือนกันยายน[[#Totals],[กำไร/ขาดทุน\nยอดขาย]]","v":{"v":0,"d":"฿ 0.00"}},{"$f":"ยอดขายเดือนกันยายน[[#Totals],[กำไร/ขาดทุน\nการจัดส่ง]]","v":{"v":0,"d":"฿ 0.00"}},{"$f":"IF(AND(สรุปตั้งแต่ต้นปี[[#This Row],[กำไร/ขาดทุน ยอดขาย]]<>\"\",สรุปตั้งแต่ต้นปี[[#This Row],[กำไร/ขาดทุน การจัดส่ง]]<>\"\"),สรุปตั้งแต่ต้นปี[[#This Row],[กำไร/ขาดทุน ยอดขาย]]+สรุปตั้งแต่ต้นปี[[#This Row],[กำไร/ขาดทุน การจัดส่ง]],\"\")","v":{"v":0,"d":"฿ 0.00"}}]
[{"$nulls":7},"ตุลาคม",{"$f":"ยอดขายเดือนตุลาคม[[#Totals],[กำไร/ขาดทุน\nยอดขาย]]","v":{"v":0,"d":"฿ 0.00"}},{"$f":"ยอดขายเดือนตุลาคม[[#Totals],[กำไร/ขาดทุน\nการจัดส่ง]]","v":{"v":0,"d":"฿ 0.00"}},{"$f":"IF(AND(สรุปตั้งแต่ต้นปี[[#This Row],[กำไร/ขาดทุน ยอดขาย]]<>\"\",สรุปตั้งแต่ต้นปี[[#This Row],[กำไร/ขาดทุน การจัดส่ง]]<>\"\"),สรุปตั้งแต่ต้นปี[[#This Row],[กำไร/ขาดทุน ยอดขาย]]+สรุปตั้งแต่ต้นปี[[#This Row],[กำไร/ขาดทุน การจัดส่ง]],\"\")","v":{"v":0,"d":"฿ 0.00"}}]
[{"$nulls":7},"พฤศจิกายน",{"$f":"ยอดขายเดือนพฤศจิกายน[[#Totals],[กำไร/ขาดทุน\nยอดขาย]]","v":{"v":0,"d":"฿ 0.00"}},{"$f":"ยอดขายเดือนพฤศจิกายน[[#Totals],[กำไร/ขาดทุน\nการจัดส่ง]]","v":{"v":0,"d":"฿ 0.00"}},{"$f":"IF(AND(สรุปตั้งแต่ต้นปี[[#This Row],[กำไร/ขาดทุน ยอดขาย]]<>\"\",สรุปตั้งแต่ต้นปี[[#This Row],[กำไร/ขาดทุน การจัดส่ง]]<>\"\"),สรุปตั้งแต่ต้นปี[[#This Row],[กำไร/ขาดทุน ยอดขาย]]+สรุปตั้งแต่ต้นปี[[#This Row],[กำไร/ขาดทุน การจัดส่ง]],\"\")","v":{"v":0,"d":"฿ 0.00"}}]
[{"$nulls":7},"ธันวาคม",{"$f":"ยอดขายเดือนธันวาคม[[#Totals],[กำไร/ขาดทุน\nยอดขาย]]","v":{"v":0,"d":"฿ 0.00"}},{"$f":"ยอดขายเดือนธันวาคม[[#Totals],[กำไร/ขาดทุน\nการจัดส่ง]]","v":{"v":0,"d":"฿ 0.00"}},{"$f":"IF(AND(สรุปตั้งแต่ต้นปี[[#This Row],[กำไร/ขาดทุน ยอดขาย]]<>\"\",สรุปตั้งแต่ต้นปี[[#This Row],[กำไร/ขาดทุน การจัดส่ง]]<>\"\"),สรุปตั้งแต่ต้นปี[[#This Row],[กำไร/ขาดทุน ยอดขาย]]+สรุปตั้งแต่ต้นปี[[#This Row],[กำไร/ขาดทุน การจัดส่ง]],\"\")","v":{"v":0,"d":"฿ 0.00"}}]
[{"$nulls":7},"ผลรวม",{"$f":"SUBTOTAL(109,สรุปตั้งแต่ต้นปี[กำไร/ขาดทุน ยอดขาย])","v":{"v":291.8,"d":"฿ 291.80"}},{"$f":"SUBTOTAL(109,สรุปตั้งแต่ต้นปี[กำไร/ขาดทุน การจัดส่ง])","v":{"v":21.8,"d":"฿ 21.80"}},{"$f":"SUBTOTAL(109,สรุปตั้งแต่ต้นปี[กำไร/ขาดทุน ผลรวม])","v":{"v":313.6,"d":"฿ 313.60"}}]